bitfinex/quotes_SOLUSD_20250415
["timestamp","ask_amount","ask_price","bid_price","bid_amount"]
[1744713411865,12.22,131.81,131.78,15.8736217]
[1744713412065,12.22,131.81,131.78,23.4619217]
[1744713412262,12.22,131.81,131.8,15.8736217]
[1744713413674,12.22,131.81,131.79,15.8736217]
[1744713414976,12.22,131.81,131.79,23.4613217]
[1744713415154,12.22,131.81,131.8,15.8736217]
[1744713415958,0.03,131.84,131.81,7.5866]
[1744713416163,0.03,131.84,131.83,15.8736217]
[1744713417289,0.03,131.84,131.83,54.56501228]
[1744713418171,0.03,131.84,131.83,62.15051228]
[1744713418367,0.03,131.84,131.83,43.50086342]
[1744713418576,0.03,131.84,131.83,17.50086342]
[1744713418778,0.03,131.84,131.83,43.50086342]
[1744713419070,0.03,131.84,131.83,62.15051228]
[1744713419283,0.03,131.84,131.83,68.09786201]
[1744713420655,0.03,131.87,131.86,44.64964886]
[1744713420968,11.92,131.93,131.91,15.86271315]
[1744713421162,11.92,131.93,131.85,18.64964886]
[1744713421163,11.92,131.93,131.89,15.86271315]
[1744713421658,11.92,131.93,131.92,15.86271315]
[1744713421967,11.92,131.93,131.91,15.86271315]
[1744713422170,35.36261315,131.93,131.88,33.5823]
[1744713422375,19.4999,131.93,131.89,15.86271315]
[1744713422560,11.92,131.93,131.9,15.86271315]
[1744713422759,11.92,131.93,131.88,33.5823]
[1744713422976,19.4998,131.93,131.9,15.86271315]
[1744713423482,11.92,131.93,131.9,15.86271315]
[1744713424060,11.92,131.93,131.9,23.44401315]
[1744713426282,11.92,131.93,131.89,7.582]
[1744713426468,11.92,131.93,131.9,15.86271315]
[1744713427079,11.92,131.93,131.91,15.86271315]
[1744713427870,11.92,131.93,131.92,15.86271315]
[1744713429291,0.03,131.95,131.92,23.44301315]
[1744713429472,0.03,131.95,131.94,15.86271315]
[1744713430675,0.03,131.95,131.91,7.5807]
[1744713430879,0.03,131.95,131.94,15.86271315]
[1744713433077,0.03,131.95,131.94,23.44191315]
[1744713433608,0.03,131.95,131.94,42.09156201]
[1744713433891,0.03,131.95,131.94,57.95427516]
[1744713436782,0.03,131.99,131.94,57.95427516]
[1744713437088,0.03,131.99,131.98,15.86271315]
[1744713437591,0.03,131.99,131.98,23.43961315]
[1744713439274,0.03,131.99,131.98,17.47207834]
[1744713440593,0.03,131.99,131.98,36.1217272]
[1744713441299,0.03,131.99,131.98,17.47207834]
[1744713442580,29.60277834,131.99,131.92,9.89517834]
[1744713442779,9.89517834,131.96,131.88,18.9562]
[1744713442991,9.89517834,131.94,131.89,9.89517834]
[1744713443194,9.89517834,131.94,131.9,9.89517834]
[1744713443497,11.9,131.94,131.93,9.89517834]
[1744713444104,11.9,131.94,131.92,9.89517834]
[1744713444307,11.9,131.94,131.91,9.89517834]
[1744713444484,29.37447834,131.94,131.89,9.89517834]
[1744713444983,19.4793,131.94,131.9,9.89517834]
[1744713445499,11.9,131.94,131.92,9.89517834]
[1744713445707,11.9,131.94,131.93,9.89517834]
[1744713446199,11.9,131.94,131.93,17.47487834]
[1744713446506,11.9,131.94,131.93,9.89517834]
[1744713447484,11.9,131.94,131.93,17.47487834]
[1744713447684,11.9,131.94,131.93,9.89517834]
[1744713447886,11.9,131.94,131.92,17.47517834]
[1744713448601,11.9,131.94,131.93,9.89517834]
[1744713451500,11.9,131.94,131.92,9.89517834]
[1744713454106,19.4792,131.94,131.92,9.89517834]
[1744713454288,9.89517834,131.93,131.89,9.89517834]
[1744713454995,29.37437834,131.94,131.89,9.89517834]
[1744713455186,29.37437834,131.94,131.9,9.89517834]
[1744713455391,19.4792,131.94,131.9,9.89517834]
[1744713456189,19.4792,131.94,131.88,7.5826]
[1744713456386,19.4792,131.94,131.9,9.89517834]
[1744713459086,11.9,131.94,131.93,9.89517834]
[1744713460289,11.9,131.94,131.91,9.89517834]
[1744713461613,19.4792,131.94,131.91,9.89517834]
[1744713466119,19.4792,131.94,131.92,9.89517834]
[1744713466314,11.9,131.94,131.92,9.89517834]
[1744713468714,11.9,131.94,131.93,9.89517834]
[1744713468908,11.9,131.94,131.92,17.47527834]
[1744713469106,11.9,131.94,131.87,22.41924958]
[1744713469295,11.9,131.94,131.9,9.89517834]
[1744713469712,19.4792,131.94,131.9,9.89517834]
[1744713469912,19.4792,131.94,131.89,7.5817]
[1744713470117,19.4792,131.94,131.9,9.89517834]
[1744713471225,19.4792,131.94,131.91,9.89517834]
[1744713474325,19.4792,131.94,131.91,9.89517834]
[1744713475128,11.9,131.94,131.92,9.89517834]
[1744713475930,11.9,131.94,131.92,17.47527834]
[1744713477325,11.9,131.94,131.92,9.89517834]
[1744713478233,11.9,131.94,131.9,9.89517834]
[1744713479138,11.9,131.94,131.91,9.89517834]
[1744713479537,19.4792,131.94,131.91,9.89517834]
[1744713481232,11.9,131.94,131.93,9.89517834]
[1744713482022,11.18,131.98,131.93,17.47487834]
[1744713482230,11.18,131.98,131.94,9.89517834]
[1744713482637,11.18,131.98,131.95,9.89517834]
[1744713482836,11.18,131.98,131.96,9.89517834]
[1744713483039,11.18,131.98,131.93,7.5797]
[1744713483040,0.03,131.99,131.97,9.89517834]
[1744713483343,0.03,131.99,131.98,9.89517834]
[1744713483709,0.03,131.99,131.98,36.1217272]
[1744713483915,0.03,132.01,132.0,35.89517834]
[1744713484714,0.03,132.01,132.0,64.44000554]
[1744713485240,0.03,132.05,132.04,26.0]
[1744713485439,0.03,132.05,132.04,35.89517834]
[1744713485744,0.03,132.05,132.04,43.46857834]
[1744713486034,0.03,132.05,132.04,9.89517834]
[1744713486412,0.03,132.05,132.03,9.89517834]
[1744713486609,0.03,132.05,132.04,9.89517834]
[1744713488233,0.03,132.05,132.04,17.46857834]
[1744713489650,0.03,132.05,132.04,43.46857834]
[1744713490144,0.03,132.05,132.04,33.5734]
[1744713490332,0.03,132.05,132.04,43.46857834]
[1744713490637,0.03,132.05,132.04,9.89517834]
[1744713492039,0.03,132.05,132.04,17.46857834]
[1744713492247,0.03,132.05,132.04,36.1182272]
[1744713495846,0.03,132.05,132.04,43.46857834]
[1744713497672,0.03,132.05,132.04,62.1182272]
[1744713497872,0.03,132.06,132.05,18.64964886]
[1744713498074,0.03,132.06,132.05,28.5448272]
[1744713498375,0.03,132.07,132.05,28.5448272]
[1744713498546,0.03,132.07,132.06,9.89517834]
[1744713498750,0.03,132.07,132.06,17.46747834]
[1744713499151,0.03,132.07,132.06,36.1171272]
[1744713499354,0.03,132.08,132.07,18.64964886]
[1744713499555,0.03,132.08,132.07,38.44000554]
[1744713499950,0.03,132.11,132.07,38.44000554]
[1744713500157,0.03,132.11,132.1,54.5448272]
[1744713500873,0.03,132.12,132.11,26.21904886]
[1744713501074,0.03,132.13,132.12,28.5448272]
[1744713501285,0.03,132.13,132.12,9.89517834]
[1744713502274,0.03,132.13,132.12,17.46397834]
[1744713503250,0.03,132.17,132.12,17.46397834]
[1744713503481,0.03,132.17,132.13,28.5448272]
[1744713503685,0.03,132.17,132.13,9.89517834]
[1744713509581,0.03,132.17,132.13,17.46347834]
[1744713510460,0.03,132.17,132.13,9.89517834]
[1744713511082,0.03,132.17,132.13,17.46347834]
[1744713513575,0.03,132.17,132.13,9.89517834]
[1744713517800,9.92517834,132.17,132.12,9.89517834]
[1744713518098,9.89517834,132.16,132.12,9.89517834]
[1744713518791,7.5671,132.15,132.11,9.89517834]
[1744713519095,16.54547834,132.13,132.09,9.89517834]
[1744713519805,9.89517834,132.11,132.03,10.71885036]
[1744713520003,9.89517834,132.11,131.97,1.0]
[1744713520004,9.89517834,132.07,131.98,0.063]
[1744713520302,9.89517834,132.02,131.98,30.063]
[1744713520476,20.83517834,132.02,131.98,0.063]
[1744713520987,9.89517834,132.0,131.98,0.063]
[1744713521182,36.40817834,132.01,131.98,0.063]
[1744713521387,9.89517834,132.0,131.98,0.063]
[1744713521686,9.89517834,131.99,131.98,0.063]
[1744713521889,16.08507834,131.99,131.92,9.89517834]
[1744713522195,6.1899,131.99,131.93,9.89517834]
[1744713522408,9.89517834,131.97,131.93,26.0]
[1744713522571,10.94,131.96,131.92,9.89517834]
[1744713522979,7.5786,131.95,131.92,9.89517834]
[1744713523481,18.5182,131.96,131.93,9.89517834]
[1744713523701,9.89517834,131.95,131.9,0.063]
[1744713523907,9.89517834,131.94,131.9,0.063]
[1744713524111,9.89517834,131.94,131.9,35.95817834]
[1744713524413,37.4633,131.96,131.9,35.95817834]
[1744713524592,9.89517834,131.95,131.91,9.89517834]
[1744713524792,9.89517834,131.95,131.9,26.063]
[1744713524986,7.5792,131.94,131.91,9.89517834]
[1744713525183,26.5272,131.94,131.9,35.95817834]
[1744713525380,9.89517834,131.92,131.9,0.063]
[1744713525578,10.96,131.91,131.9,0.063]
[1744713526173,6.3234,131.9,131.87,0.063]
[1744713527003,17.47717834,131.89,131.87,0.063]
[1744713527298,9.89517834,131.88,131.84,0.063]
[1744713527488,9.89517834,131.87,131.84,0.063]
[1744713527684,10.96,131.86,131.84,0.063]
[1744713527902,10.96,131.86,131.85,9.89517834]
[1744713528202,10.96,131.86,131.84,0.063]
[1744713529215,7.5843,131.85,131.84,0.063]
[1744713532112,23.45653034,131.85,131.83,0.0001]
[1744713533877,7.5843,131.85,131.83,0.0001]
[1744713534099,10.96,131.84,131.83,0.0001]
[1744713535408,18.5449,131.84,131.83,0.0001]
[1744713535606,10.96,131.84,131.83,15.87233034]
[1744713536985,26.83223034,131.84,131.83,0.0001]
[1744713537195,34.41713034,131.84,131.83,0.0001]
[1744713537419,18.5449,131.84,131.83,0.0001]
[1744713538022,34.41713034,131.84,131.83,0.0001]
[1744713539988,34.41713034,131.84,131.8,15.87223034]
[1744713540490,18.5449,131.84,131.8,15.87223034]
[1744713540683,7.5834,131.87,131.83,15.87223034]
[1744713540905,20.1775,131.88,131.85,15.87223034]
[1744713541083,10.96,131.88,131.87,15.87223034]
[1744713541297,236.36,131.91,131.87,15.87223034]
[1744713541597,20.1172,131.92,131.9,15.87223034]
[1744713542114,15.87223034,131.91,131.87,15.87223034]
[1744713542307,15.87223034,131.9,131.85,15.87223034]
[1744713542911,15.87223034,131.89,131.82,7.5859]
[1744713543106,15.87223034,131.89,131.81,7.5865]
[1744713543419,15.87223034,131.89,131.84,15.87223034]
[1744713544016,7.5826,131.88,131.84,15.87223034]
[1744713544219,11.04,131.87,131.84,15.87223034]
[1744713544712,11.04,131.87,131.83,15.87223034]
[1744713544926,26.91223034,131.87,131.8,7.5871]
[1744713545113,26.91223034,131.87,131.83,15.87223034]
[1744713545297,32.96463034,131.87,131.8,7.5871]
[1744713545496,32.96463034,131.87,131.82,15.87223034]
[1744713546099,32.96463034,131.87,131.83,15.87223034]
[1744713546302,11.04,131.87,131.86,15.87223034]
[1744713546714,11.04,131.91,131.86,15.87223034]
[1744713547030,0.03,131.96,131.93,26.0]
[1744713547205,0.03,131.96,131.95,15.87223034]
[1744713548101,0.03,131.96,131.95,39.32306068]
[1744713548315,0.03,131.96,131.95,15.87223034]
[1744713550210,0.03,131.96,131.93,15.87223034]
[1744713550730,26.91223034,131.95,131.86,18.64964886]
[1744713551027,15.87223034,131.92,131.87,15.87223034]
[1744713551332,15.87223034,131.94,131.89,15.87223034]
[1744713551521,15.87223034,131.93,131.88,15.87223034]
[1744713551913,15.87223034,131.94,131.89,15.87223034]
[1744713552512,7.5797,131.93,131.89,15.87223034]
[1744713553831,15.87223034,131.91,131.84,7.5849]
[1744713554013,6.0999,131.92,131.88,15.87223034]
[1744713554214,90.3797,131.93,131.89,15.87223034]
[1744713554941,7.5797,131.93,131.9,15.87223034]
[1744713555718,7.5792,131.94,131.9,15.87223034]
[1744713555918,7.5792,131.94,131.87,7.5828]
[1744713555919,15.87223034,131.92,131.87,15.87223034]
[1744713556114,26.5272,131.94,131.86,15.87223034]
[1744713556115,109.3272,131.94,131.86,15.87223034]
[1744713556332,15.87223034,131.92,131.87,15.87223034]
[1744713556535,15.87223034,131.91,131.86,15.87223034]
[1744713556716,26.91223034,131.91,131.86,15.87223034]
[1744713556917,11.04,131.91,131.87,15.87223034]
[1744713557414,7.5815,131.9,131.87,15.87223034]
[1744713558736,11.04,131.91,131.89,15.87223034]
[1744713558940,1.6408,131.95,131.9,15.87223034]
[1744713558941,7.5794,131.94,131.9,15.87223034]
[1744713559246,7.5794,131.94,131.91,15.87223034]
[1744713559424,11.04,131.95,131.93,15.87223034]
[1744713560128,11.04,131.95,131.94,15.87223034]
[1744713561517,0.03,131.96,131.94,15.87223034]
[1744713561721,0.03,131.96,131.95,15.87223034]
[1744713562755,0.03,131.96,131.95,50.39410954]
[1744713562922,0.03,131.97,131.92,26.5311]
[1744713563124,0.03,131.97,131.96,15.87223034]
[1744713563423,0.03,131.97,131.95,15.87223034]
[1744713563623,0.03,131.97,131.96,15.87223034]
[1744713563920,0.03,131.97,131.95,15.87223034]
[1744713564343,0.03,131.97,131.96,15.87223034]
[1744713565445,0.03,131.97,131.89,29.49981977]
[1744713565749,0.03,131.97,131.96,15.87223034]
[1744713568426,0.03,131.97,131.93,15.87223034]
[1744713569537,7.6074,131.97,131.93,15.87223034]
[1744713570142,0.03,131.97,131.94,15.87223034]
[1744713570350,0.03,131.97,131.95,15.87223034]
[1744713571958,0.03,131.97,131.96,15.87223034]
[1744713576149,0.03,131.97,131.96,23.45023034]
[1744713576325,0.03,131.98,131.97,18.64964886]
[1744713576531,0.03,131.98,131.97,34.5218792]
[1744713577427,0.03,131.98,131.97,42.0992792]
[1744713577865,0.03,131.98,131.97,23.44963034]
[1744713581136,0.03,131.98,131.97,42.0992792]
[1744713581734,0.03,131.98,131.97,23.44963034]
[1744713583846,0.03,131.98,131.97,42.0992792]
[1744713585166,0.03,131.98,131.97,23.44963034]
[1744713586272,0.03,131.98,131.97,42.0992792]
[1744713588275,0.03,131.98,131.97,23.44963034]
[1744713594968,7.6852,131.97,131.91,0.063]
[1744713595170,15.87223034,131.92,131.91,0.063]
[1744713596082,6.5326,131.91,131.89,0.063]
[1744713596281,28.44223034,131.9,131.89,0.063]
[1744713596790,28.44223034,131.9,131.81,0.063]
[1744713596966,15.87223034,131.86,131.81,15.93523034]
[1744713597686,15.87223034,131.86,131.83,0.063]
[1744713598070,15.87223034,131.85,131.83,0.063]
[1744713598990,23.45713034,131.84,131.83,0.063]
[1744713599201,7.5849,131.84,131.83,0.063]
[1744713599668,29.83823034,131.84,131.83,0.063]
[1744713600290,6.3811,131.84,131.83,0.063]
[1744713600583,11.02,131.85,131.83,15.93523034]
[1744713600786,15.87223034,131.84,131.83,0.063]
[1744713600989,23.45713034,131.84,131.83,0.063]
[1744713601313,25.12333034,131.84,131.83,0.063]
[1744713601890,145.5352792,131.84,131.81,0.063]
[1744713602092,15.87223034,131.82,131.81,0.063]
[1744713602519,18.64964886,131.81,131.79,0.063]
[1744713602682,27.01223034,131.8,131.79,0.063]
[1744713603192,34.59943034,131.8,131.79,0.063]
[1744713603518,27.01223034,131.8,131.79,0.063]
[1744713603719,11.14,131.8,131.79,0.063]
[1744713604210,11.14,131.8,131.79,15.93523034]
[1744713604588,11.14,131.8,131.79,0.063]
[1744713605683,27.01223034,131.8,131.79,0.063]
[1744713605907,34.59943034,131.8,131.79,0.063]
[1744713606483,18.7272,131.8,131.79,0.063]
[1744713606690,11.14,131.8,131.79,0.063]
[1744713606884,22.25033034,131.82,131.79,0.063]
[1744713607107,12.8262,131.84,131.81,15.87223034]
[1744713608705,36.28343034,131.84,131.79,15.93523034]
[1744713609510,36.28343034,131.84,131.79,0.063]
[1744713609511,15.87223034,131.8,131.79,0.063]
[1744713610012,22.09083034,131.8,131.79,0.063]
[1744713611194,6.2186,131.8,131.79,0.063]
[1744713611625,101.5463,131.82,131.79,15.93523034]
[1744713612207,101.5463,131.82,131.79,0.063]
[1744713612910,117.41853034,131.82,131.79,0.063]
[1744713613109,18.7463,131.82,131.79,15.93523034]
[1744713613422,15.87223034,131.8,131.79,0.063]
[1744713613797,22.09083034,131.8,131.79,0.063]
[1744713614003,1.5945,131.78,131.77,0.063]
[1744713614198,17.46673034,131.78,131.77,0.0001]
[1744713615126,43.7047792,131.78,131.76,8.58e-05]
[1744713615422,45.6818792,131.77,131.73,0.063]
[1744713615613,45.6818792,131.77,131.73,0.0001]
[1744713615614,31.74446068,131.74,131.73,0.0001]
[1744713615802,50.39410954,131.74,131.73,0.0001]
[1744713616206,26.0,131.71,131.65,0.063]
[1744713616423,26.0,131.71,131.65,15.93523034]
[1744713616424,11.16,131.7,131.65,15.93523034]
[1744713616727,11.16,131.7,131.67,15.87223034]
[1744713617034,11.16,131.7,131.68,15.87223034]
[1744713617202,11.16,131.7,131.67,23.50223977]
[1744713617798,18.753,131.7,131.67,23.50223977]
[1744713618013,18.753,131.7,131.66,23.50223977]
[1744713618199,42.25523977,131.7,131.66,23.50223977]
[1744713618823,18.753,131.7,131.66,23.50223977]
[1744713619020,42.25523977,131.7,131.65,4.1640664]
[1744713619336,61.23773977,131.7,131.65,27.66630617]
[1744713619525,23.50223977,131.68,131.65,4.1640664]
[1744713620321,18.753,131.7,131.66,23.50223977]
[1744713620526,1.6302,131.73,131.69,23.50223977]
[1744713620705,18.7503,131.75,131.72,23.50223977]
[1744713620904,18.748,131.79,131.74,23.50223977]
[1744713621111,42.25023977,131.79,131.75,23.50223977]
[1744713621307,42.25023977,131.79,131.74,23.50223977]
[1744713621517,23.50223977,131.78,131.74,23.50223977]
[1744713621707,11.16,131.79,131.75,23.50223977]
[1744713621914,1.5221,131.81,131.75,23.50223977]
[1744713621915,1.5221,131.81,131.78,23.50223977]
[1744713622113,11.16,131.83,131.8,23.50223977]
[1744713622315,11.16,131.83,131.82,23.50223977]
[1744713622522,11.16,131.83,131.81,23.50223977]
[1744713623225,11.16,131.83,131.76,20.30994886]
[1744713623226,11.16,131.83,131.8,23.50223977]
[1744713623424,11.16,131.83,131.81,23.50223977]
[1744713625030,11.16,131.83,131.82,23.50223977]
[1744713625220,11.16,131.83,131.81,23.50223977]
[1744713625423,11.16,131.83,131.82,23.50223977]
[1744713625909,29.95613977,131.89,131.82,42.15188863]
[1744713626110,1.6502,131.9,131.87,23.50223977]
[1744713626322,0.03,131.9,131.88,23.50223977]
[1744713626524,0.03,131.9,131.87,23.50223977]
[1744713626722,31.11373977,131.9,131.81,23.50223977]
[1744713627030,0.03,131.9,131.88,23.50223977]
[1744713627436,0.03,131.9,131.89,23.50223977]
[1744713628133,0.03,131.9,131.88,23.50223977]
[1744713628330,0.03,131.9,131.89,23.50223977]
[1744713629036,0.03,131.9,131.86,7.5838]
[1744713629218,0.03,131.9,131.88,23.50223977]
[1744713629719,0.03,131.9,131.87,23.50223977]
[1744713629920,0.03,131.9,131.89,23.50223977]
[1744713631130,0.03,131.9,131.89,31.08423977]
[1744713631723,0.03,131.9,131.89,24.96277777]
[1744713631939,0.03,131.9,131.89,1.460538]
[1744713632641,23.53223977,131.9,131.89,1.460538]
[1744713633230,29.86613977,131.9,131.89,1.460538]
[1744713634042,29.86613977,131.9,131.89,3.8e-05]
[1744713634244,37.44763977,131.9,131.89,3.8e-05]
[1744713634425,48.88763977,131.9,131.89,3.8e-05]
[1744713635226,25.3854,131.9,131.89,3.8e-05]
[1744713635424,11.47,131.9,131.89,3.8e-05]
[1744713635922,19.0515,131.9,131.89,3.8e-05]
[1744713636636,11.47,131.9,131.89,3.8e-05]
[1744713637029,19.0515,131.9,131.89,3.8e-05]
[1744713638343,11.47,131.9,131.89,3.8e-05]
[1744713638544,0.03,131.9,131.89,23.50227777]
[1744713638924,0.03,131.9,131.89,49.73392663]
[1744713639132,0.03,131.9,131.89,42.07898425]
[1744713639631,0.03,131.96,131.93,18.64964886]
[1744713639832,0.03,131.96,131.95,15.84729739]
[1744713640143,0.03,131.96,131.95,34.49694625]
[1744713640335,0.03,131.96,131.95,50.34424364]
[1744713640722,0.03,131.96,131.95,57.92284364]
[1744713641236,0.03,131.98,131.96,18.64964886]
[1744713641438,0.03,131.98,131.97,23.38304466]
[1744713641646,0.03,131.98,131.97,42.03269352]
[1744713642042,0.03,131.98,131.97,23.38304466]
[1744713642341,0.03,131.98,131.97,49.38304466]
[1744713642929,0.03,131.98,131.97,56.96044466]
[1744713643124,0.03,131.98,131.94,7.5788]
[1744713643328,0.03,131.98,131.97,23.38304466]
[1744713644441,0.03,131.98,131.97,42.03269352]
[1744713644824,0.03,131.98,131.97,49.61009352]
[1744713646442,0.03,132.03,131.98,18.64964886]
[1744713646644,0.03,132.03,132.02,65.41573818]
[1744713646951,0.03,132.03,132.02,72.99033818]
[1744713647446,0.03,132.04,132.03,18.64964886]
[1744713647627,0.03,132.04,132.03,42.03269352]
[1744713648947,0.03,132.04,132.03,49.60669352]
[1744713652058,0.03,132.04,132.02,7.5744]
[1744713652352,0.03,132.04,132.02,23.38304466]
[1744713653730,23.41304466,132.04,131.95,23.38304466]
[1744713653928,23.38304466,132.02,131.97,23.38304466]
[1744713654131,23.38304466,132.0,131.95,23.38304466]
[1744713654333,34.80304466,132.01,131.96,23.38304466]
[1744713654542,11.42,132.01,131.97,23.38304466]
[1744713654856,34.80304466,132.01,131.97,23.38304466]
[1744713655033,7.5757,132.0,131.96,23.38304466]
[1744713655233,30.95874466,132.0,131.96,23.38304466]
[1744713657039,30.95874466,132.0,131.95,7.5786]
[1744713657239,30.95874466,132.0,131.96,23.38304466]
[1744713658459,30.95874466,132.0,131.95,30.96164466]
[1744713659155,7.5757,132.0,131.96,23.38304466]
[1744713659654,11.42,132.01,131.98,23.38304466]
[1744713659856,11.42,132.01,131.99,23.38304466]
[1744713660066,11.42,132.01,131.98,23.38304466]
[1744713660537,0.03,132.04,132.0,42.03269352]
[1744713660735,0.03,132.04,132.03,23.38304466]
[1744713660941,0.03,132.04,132.03,42.03269352]
[1744713661153,0.03,132.04,132.02,15.82751252]
[1744713661373,0.03,132.04,131.99,26.0]
[1744713661374,23.43121252,132.04,131.99,41.82751252]
[1744713661564,15.82751252,132.03,131.98,15.82751252]
[1744713661864,7.6037,132.04,131.99,15.82751252]
[1744713662066,0.03,132.04,132.01,15.82751252]
[1744713662254,7.6035,132.04,132.0,15.82751252]
[1744713662453,23.43101252,132.04,131.99,15.82751252]
[1744713662668,7.6035,132.04,132.0,15.82751252]
[1744713662871,23.43101252,132.04,131.99,15.82751252]
[1744713663045,26.5371,132.04,131.97,15.82751252]
[1744713663251,15.82751252,132.01,131.96,15.82751252]
[1744713663450,11.24,132.01,131.97,15.82751252]
[1744713663654,11.24,132.01,131.98,15.82751252]
[1744713664052,11.24,132.01,131.96,7.5775]
[1744713664274,11.24,132.01,131.97,15.82751252]
[1744713665274,11.24,132.01,131.95,23.39754544]
[1744713665275,23.39754544,132.0,131.95,23.39754544]
[1744713665467,17.4198,132.01,131.97,30.97474544]
[1744713665779,11.24,132.01,132.0,23.39754544]
[1744713666159,0.03,132.04,132.01,18.64964886]
[1744713666377,0.03,132.04,132.03,23.39754544]
[1744713667382,0.03,132.04,132.01,44.64964886]
[1744713667678,0.03,132.04,132.03,23.39754544]
[1744713670078,0.03,132.04,132.03,49.6211943]
[1744713670378,0.03,132.04,132.01,23.39754544]
[1744713670576,0.03,132.04,132.0,30.97294544]
[1744713670781,0.03,132.04,132.03,23.39754544]
[1744713670963,0.03,132.04,132.03,42.0471943]
[1744713671776,0.03,132.04,132.03,49.6211943]
[1744713672153,0.03,132.04,132.03,23.39754544]
[1744713672351,0.03,132.04,132.02,23.39754544]
[1744713672554,0.03,132.04,132.03,23.39754544]
[1744713672968,0.03,132.04,132.03,42.0471943]
[1744713673163,0.03,132.09,132.03,42.0471943]
[1744713673362,0.03,132.09,132.08,42.0471943]
[1744713673568,0.03,132.09,132.08,65.44473974]
[1744713674083,0.03,132.09,132.08,73.01583974]
[1744713675479,0.03,132.09,132.08,49.6182943]
[1744713676559,0.03,132.09,132.08,73.01583974]
[1744713677280,0.0001,132.09,132.08,73.01583974]
[1744713677576,0.03,132.11,132.09,18.64964886]
[1744713677784,0.03,132.11,132.1,42.0471943]
[1744713678684,0.03,132.11,132.1,49.6171943]
[1744713678879,0.03,132.11,132.1,23.39754544]
[1744713680257,0.03,132.11,132.06,18.64964886]
[1744713680457,23.39754544,132.07,132.0,7.5757]
[1744713680678,23.39754544,132.01,131.99,35.54283544]
[1744713680884,34.63754544,132.03,131.98,49.39754544]
[1744713681187,11.24,132.03,132.0,23.39754544]
[1744713681596,34.63754544,132.03,131.98,23.39754544]
[1744713681892,11.24,132.03,131.99,23.39754544]
[1744713682095,34.63754544,132.03,131.98,23.39754544]
[1744713682988,11.24,132.03,132.0,23.39754544]
[1744713683292,11.24,132.03,131.99,42.0471943]
[1744713683469,18.8141,132.03,131.99,23.39754544]
[1744713683670,42.21164544,132.03,131.98,23.39754544]
[1744713684401,23.39754544,132.02,131.97,18.64964886]
[1744713684691,42.21164544,132.03,131.98,23.39754544]
[1744713684890,11.24,132.03,132.0,23.39754544]
[1744713685096,18.8142,132.03,131.99,23.39754544]
[1744713685293,23.39754544,132.02,131.97,23.39754544]
[1744713685801,23.39754544,132.01,131.96,42.0471943]
[1744713686094,23.39754544,132.01,131.96,49.6251943]
[1744713686398,23.39754544,132.01,131.96,23.39754544]
[1744713686600,23.39754544,131.99,131.94,23.39754544]
[1744713686781,11.24,131.98,131.95,23.39754544]
[1744713687187,11.24,131.98,131.95,15.84344322]
[1744713687574,11.24,131.98,131.96,15.84344322]
[1744713687906,11.24,131.98,131.95,15.84344322]
[1744713688087,34.66034322,131.98,131.93,15.90644322]
[1744713688400,34.66034322,131.98,131.93,23.48614322]
[1744713688993,18.8169,131.98,131.94,15.84344322]
[1744713690700,34.66034322,131.98,131.93,0.063]
[1744713690890,15.84344322,131.97,131.93,15.90644322]
[1744713691086,34.66034322,131.98,131.93,15.90644322]
[1744713691602,34.66034322,131.98,131.93,0.063]
[1744713691817,15.84344322,131.97,131.93,0.063]
[1744713692203,7.5776,131.97,131.93,15.90644322]
[1744713692519,11.24,131.98,131.94,15.84344322]
[1744713692705,11.24,131.98,131.96,15.84344322]
[1744713693511,11.24,131.98,131.97,15.84344322]
[1744713694693,11.24,131.98,131.97,23.42084322]
[1744713695519,27.08344322,131.98,131.93,0.063]
[1744713695712,15.84344322,131.97,131.93,0.063]